bitfinex-derivatives/quotes_BTCF0:USTF0_20241019
["timestamp","ask_amount","ask_price","bid_price","bid_amount"]
[1729364494121,0.18094722,68217.0,68216.0,0.10515947]
[1729364495632,0.18094722,68217.0,68216.0,0.22942618]
[1729364496332,0.18094722,68217.0,68216.0,0.10515947]
[1729364496838,0.18094722,68217.0,68216.0,0.22946633]
[1729364497531,0.18094722,68217.0,68216.0,0.10515947]
[1729364497728,0.18094722,68217.0,68216.0,0.22947446]
[1729364498439,0.2451628,68217.0,68216.0,0.0002]
[1729364504330,0.29015829,68217.0,68216.0,0.0002]
[1729364505332,0.18094722,68217.0,68216.0,0.0002]
[1729364510440,0.18094722,68217.0,68216.0,0.07335175]
[1729364511341,0.18094722,68217.0,68216.0,0.17778761]
[1729364511831,0.18094722,68217.0,68216.0,0.10463586]
[1729364513044,0.18094722,68217.0,68216.0,0.10466783]
[1729364513345,0.18094722,68217.0,68216.0,0.10469209]
[1729364517845,0.18094722,68217.0,68216.0,0.10465516]
[1729364520243,0.29015899,68217.0,68216.0,0.0002]
[1729364525944,0.18094722,68217.0,68216.0,0.0002]
[1729364526139,0.29016052,68217.0,68216.0,0.0002]
[1729364527243,0.45149269,68217.0,68216.0,0.0002]
[1729364528343,0.27631739,68217.0,68216.0,0.47637178]
[1729364528943,0.27631739,68217.0,68216.0,0.37390671]
[1729364529441,0.34227939,68217.0,68216.0,0.37390671]
[1729364530647,0.34227939,68217.0,68216.0,0.47651514]
[1729364530942,0.34227939,68217.0,68216.0,0.47513385]
[1729364532155,0.34227939,68217.0,68216.0,0.47508075]
[1729364532656,0.34227939,68217.0,68216.0,0.33103809]
[1729364534255,0.34227939,68217.0,68216.0,0.47512744]
[1729364535455,0.34227939,68217.0,68216.0,0.22842966]
[1729364537659,0.18094722,68217.0,68216.0,0.22842966]
[1729364543463,0.29016071,68217.0,68216.0,0.0002]
[1729364550267,0.45150955,68217.0,68216.0,0.0002]
[1729364550460,0.34229606,68217.0,68216.0,0.10428522]
[1729364550666,0.18094722,68217.0,68216.0,0.10428522]
[1729364554855,0.18094722,68217.0,68216.0,0.0002]
[1729364555060,0.18094722,68217.0,68216.0,0.10420438]
[1729364557359,0.24516087,68217.0,68216.0,0.0002]
[1729364557570,0.29015591,68217.0,68216.0,0.0002]
[1729364559369,0.24516087,68217.0,68216.0,0.0002]
[1729364563273,0.065964,68215.0,68214.0,0.046165]
[1729364563472,0.13017765,68215.0,68214.0,0.046165]
[1729364565367,0.065964,68215.0,68214.0,0.23817546]
[1729364566057,0.065964,68215.0,68214.0,0.19201046]
[1729364566467,0.065964,68215.0,68214.0,0.10405799]
[1729364566877,0.065964,68215.0,68214.0,0.19201046]
[1729364569261,0.065964,68215.0,68214.0,0.10405799]
[1729364570268,0.065964,68215.0,68214.0,0.19201046]
[1729364571174,0.065964,68215.0,68214.0,0.19197935]
[1729364571575,0.065964,68215.0,68214.0,0.10405799]
[1729364571767,0.065964,68215.0,68214.0,0.19197935]
[1729364571967,0.065964,68215.0,68214.0,0.10405799]
[1729364572462,0.065966,68213.0,68212.0,0.065967]
[1729364572669,0.13018271,68213.0,68212.0,0.065967]
[1729364572966,0.17517991,68213.0,68212.0,0.065967]
[1729364577286,0.13018271,68213.0,68212.0,0.065967]
[1729364578792,0.13018312,68213.0,68212.0,0.065967]
[1729364579474,0.065968,68211.0,68210.0,0.39286]
[1729364579677,0.13018512,68211.0,68210.0,0.458069]
[1729364580579,0.11494522,68217.0,68210.0,0.78868658]
[1729364580774,0.11494522,68217.0,68211.0,0.22800915]
[1729364580775,0.065967,68212.0,68211.0,0.22800915]
[1729364581283,0.065967,68212.0,68211.0,0.33061758]
[1729364581475,0.065967,68212.0,68211.0,0.22800915]
[1729364581682,0.065967,68212.0,68211.0,0.33061758]
[1729364581987,0.065967,68212.0,68211.0,0.22800915]
[1729364582685,0.065967,68212.0,68211.0,0.33061758]
[1729364583189,0.065967,68212.0,68211.0,0.22800915]
[1729364583395,0.065967,68212.0,68211.0,0.33061758]
[1729364583587,0.065967,68212.0,68211.0,0.32965508]
[1729364584480,0.065967,68212.0,68211.0,0.22704665]
[1729364584986,0.11494522,68217.0,68211.0,0.37043233]
[1729364585290,0.065963,68216.0,68215.0,0.1025766]
[1729364585477,0.065963,68216.0,68215.0,0.47300893]
[1729364586177,0.065963,68216.0,68215.0,0.36977698]
[1729364586479,0.065963,68216.0,68215.0,0.22704665]
[1729364586781,0.11494522,68217.0,68215.0,0.22617814]
[1729364586980,0.18090722,68217.0,68216.0,0.22617814]
[1729364587386,0.27673969,68217.0,68214.0,0.0002]
[1729364587587,0.065964,68215.0,68214.0,0.0002]
[1729364587781,0.17517905,68215.0,68214.0,0.0002]
[1729364591484,0.17517777,68215.0,68214.0,0.0002]
[1729364595590,0.065964,68215.0,68214.0,0.22631381]
[1729364595892,0.065964,68215.0,68214.0,0.47164757]
[1729364596086,0.065964,68215.0,68214.0,0.22631381]
[1729364596281,0.065964,68215.0,68214.0,0.32889041]
[1729364597486,0.065964,68215.0,68214.0,0.22631381]
[1729364597995,0.065964,68215.0,68214.0,0.32889041]
[1729364598190,0.065964,68215.0,68214.0,0.47163721]
[1729364598400,0.065964,68215.0,68214.0,0.32889041]
[1729364598886,0.065964,68215.0,68214.0,0.22631381]
[1729364599185,0.065964,68215.0,68214.0,0.32889041]
[1729364599383,0.065964,68215.0,68214.0,0.47163433]
[1729364599690,0.065964,68215.0,68214.0,0.36905773]
[1729364601089,0.065964,68215.0,68214.0,0.36904986]
[1729364601489,0.065964,68215.0,68214.0,0.2262992]
[1729364602591,0.065964,68215.0,68214.0,0.10334925]
[1729364605879,0.065964,68215.0,68214.0,0.10344051]
[1729364609194,0.065964,68215.0,68214.0,0.10334248]
[1729364610698,0.17517767,68215.0,68214.0,0.0002]
[1729364615402,0.17517779,68215.0,68214.0,0.0002]
[1729364617602,0.01461681,68215.0,68214.0,0.22640127]
[1729364617801,0.08876,68216.0,68214.0,0.22640127]
[1729364618005,0.154723,68216.0,68215.0,0.22620127]
[1729364625412,0.154723,68216.0,68215.0,0.10319581]
[1729364625608,0.065964,68215.0,68214.0,0.0002]
[1729364632610,0.17518278,68215.0,68214.0,0.0002]
[1729364638312,0.13018351,68215.0,68214.0,0.0002]
[1729364639005,0.065964,68215.0,68214.0,0.0002]
[1729364639406,0.13018704,68215.0,68214.0,0.0002]
[1729364640418,0.065964,68215.0,68214.0,0.0002]
[1729364640615,0.065964,68215.0,68202.0,0.3608]
[1729364640817,0.50802166,68204.0,68203.0,0.139356]
[1729364641005,0.59674166,68204.0,68203.0,0.07338]
[1729364641211,0.154695,68204.0,68203.0,0.07338]
[1729364644916,0.18094737,68204.0,68203.0,0.07338]
[1729364645511,0.18094737,68204.0,68203.0,0.21629453]
[1729364645708,0.11497237,68204.0,68203.0,0.54527941]
[1729364645909,0.18094737,68204.0,68203.0,0.40236488]
[1729364646423,0.18094737,68204.0,68203.0,0.29973875]
[1729364647324,0.18094737,68204.0,68203.0,0.54479548]
[1729364647720,0.1295927,68204.0,68203.0,0.40236488]
[1729364648024,0.1295927,68204.0,68203.0,0.29973875]
[1729364648523,0.19381928,68204.0,68203.0,0.07338]
[1729364656427,0.1295927,68204.0,68203.0,0.07338]
[1729364663433,0.17284855,68204.0,68202.0,0.31759772]
[1729364663736,0.17284855,68204.0,68202.0,0.31679772]
[1729364663737,0.17520685,68203.0,68202.0,0.31679772]
[1729364667242,0.17520692,68203.0,68202.0,0.31679772]
[1729364671532,0.065976,68203.0,68202.0,0.42029251]
[1729364672740,0.065976,68203.0,68202.0,0.5082163]
[1729364675762,0.154696,68203.0,68202.0,0.5082163]
[1729364676752,0.154696,68203.0,68202.0,0.40472151]
[1729364676958,0.154696,68203.0,68202.0,0.50824118]
[1729364678436,0.26392688,68203.0,68202.0,0.31679772]
[1729364683472,0.26392688,68203.0,68191.0,0.063]
[1729364683473,0.19795088,68203.0,68191.0,0.063]
[1729364683777,0.0002,68195.0,68191.0,0.128987]
[1729364683977,0.10923088,68194.0,68192.0,0.22095882]
[1729364686475,0.0002,68195.0,68193.0,0.10355884]
[1729364686669,0.0002,68195.0,68194.0,0.19153607]
[1729364686976,0.0002,68195.0,68194.0,0.19153736]
[1729364687566,0.0002,68195.0,68194.0,0.10356013]
[1729364687859,0.0002,68195.0,68194.0,0.19153037]
[1729364690258,0.066183,68195.0,68194.0,0.10356013]
[1729364690454,0.09203151,68195.0,68194.0,0.19151485]
[1729364692855,0.066183,68195.0,68194.0,0.19151485]
[1729364693049,0.066183,68195.0,68194.0,0.10356013]
[1729364693446,0.13041388,68195.0,68191.0,0.128987]
[1729364693651,0.06443088,68194.0,68191.0,0.128987]
[1729364693953,0.06423088,68193.0,68192.0,0.22023961]
[1729364695847,0.06423088,68193.0,68192.0,0.28622561]
[1729364701662,0.0002,68194.0,68192.0,0.51295694]
[1729364701952,0.0002,68194.0,68193.0,0.10343763]
[1729364704149,0.066184,68194.0,68193.0,0.10343763]
[1729364705655,0.066184,68194.0,68193.0,0.22674192]
[1729364707363,0.066184,68194.0,68193.0,0.25309905]
[1729364708655,0.1304143,68194.0,68193.0,0.02635713]
[1729364708852,0.1304143,68194.0,68192.0,0.065986]
[1729364709067,0.0644303,68193.0,68192.0,0.065986]
[1729364709368,0.0644303,68193.0,68192.0,0.28658268]
[1729364710573,0.1304153,68193.0,68192.0,0.28658268]
[1729364710766,0.1304153,68193.0,68192.0,0.31281567]
[1729364714364,0.1304153,68193.0,68192.0,0.67361567]
[1729364714774,0.1304153,68193.0,68192.0,0.31281567]
[1729364714974,0.1304153,68193.0,68192.0,0.67361567]
[1729364716674,0.0002,68194.0,68192.0,0.90048011]
[1729364716881,0.066184,68194.0,68193.0,0.22686444]
[1729364717269,0.066184,68194.0,68193.0,0.58766444]
[1729364717869,0.066184,68194.0,68193.0,0.22686444]
[1729364718175,0.066184,68194.0,68193.0,0.58766444]
[1729364718377,0.066184,68194.0,68193.0,0.22686444]
[1729364718779,0.066184,68194.0,68193.0,0.58766444]
[1729364718979,0.066184,68194.0,68193.0,0.22686444]
[1729364719672,0.066184,68194.0,68193.0,0.58766444]
[1729364720373,0.066184,68194.0,68193.0,0.22686444]
[1729364720675,0.066184,68194.0,68193.0,0.58766444]
[1729364721273,0.066184,68194.0,68193.0,0.22608721]
[1729364721581,0.066184,68194.0,68193.0,0.58688721]
[1729364723681,0.066184,68194.0,68193.0,0.55197414]
[1729364726071,0.066184,68194.0,68193.0,0.55202936]
[1729364730175,0.066184,68194.0,68193.0,0.463999]
[1729364730472,0.066184,68194.0,68193.0,0.5520401]
[1729364730678,0.066184,68194.0,68193.0,0.3608]
[1729364731467,0.17542103,68194.0,68193.0,0.3608]
[1729364732586,0.1304143,68194.0,68193.0,0.3608]
[1729364733671,0.17542103,68194.0,68193.0,0.3608]
[1729364734580,0.19317494,68201.0,68193.0,1.62211456]
[1729364734780,0.065976,68203.0,68200.0,0.3608]
[1729364734985,0.04500206,68202.0,68201.0,0.065977]
[1729364735177,0.04500206,68202.0,68201.0,0.28737156]
[1729364735378,0.065976,68203.0,68201.0,0.28737156]
[1729364735578,0.04500055,68202.0,68201.0,0.28737156]
[1729364736481,0.065976,68203.0,68201.0,0.28737156]
[1729364737183,0.0002,68207.0,68201.0,0.28737156]
[1729364737375,0.065977,68202.0,68201.0,0.28737156]
[1729364738685,0.065977,68202.0,68201.0,0.39060979]
[1729364739381,0.065977,68202.0,68201.0,0.46388127]
[1729364739582,0.065977,68202.0,68201.0,0.36064304]
[1729364740580,0.065977,68202.0,68201.0,0.28737156]
[1729364742073,0.065977,68202.0,68201.0,0.22139456]
[1729364742489,0.065981,68198.0,68197.0,0.07347148]
[1729364742678,0.066181,68198.0,68197.0,0.0002]
[1729364745589,0.066181,68198.0,68197.0,0.0002]
[1729364745786,0.066181,68198.0,68197.0,0.10368131]
[1729364752696,0.066181,68198.0,68197.0,0.16966331]
[1729364752883,0.066181,68198.0,68197.0,0.25770441]
[1729364753794,0.13040924,68198.0,68197.0,0.066182]
[1729364756486,0.15666558,68198.0,68197.0,0.066182]
[1729364759188,0.14908259,68198.0,68197.0,0.066182]
[1729364759388,0.15666569,68198.0,68197.0,0.066182]
[1729364760692,0.09243734,68198.0,68197.0,0.25769938]
[1729364761198,0.09243734,68198.0,68197.0,0.25759835]
[1729364762597,0.09243734,68198.0,68197.0,0.25762327]
[1729364764300,0.09243734,68198.0,68197.0,0.1696832]
[1729364765593,0.09243734,68198.0,68197.0,0.066182]
[1729364765798,0.09243734,68198.0,68197.0,0.16966308]
[1729364766001,0.066181,68198.0,68197.0,0.16966308]
[1729364767292,0.066181,68198.0,68197.0,0.066182]
[1729364767596,0.066181,68198.0,68197.0,0.16967509]
[1729364768803,0.1304091,68198.0,68197.0,0.066182]
[1729364770601,0.17541429,68198.0,68197.0,0.066182]
[1729364771105,0.1304091,68198.0,68197.0,0.066182]
[1729364773104,0.13041118,68198.0,68197.0,0.066182]
[1729364775704,0.066181,68198.0,68197.0,0.2932689]
[1729364776211,0.0002,68198.0,68197.0,0.2932689]
[1729364776406,0.066181,68198.0,68197.0,0.2932689]
[1729364777508,0.066181,68198.0,68197.0,0.53843687]
[1729364779616,0.0002,68198.0,68197.0,0.53843687]
[1729364779915,0.0002,68198.0,68197.0,0.43580988]
[1729364780310,0.0002,68198.0,68197.0,0.53850788]
[1729364781811,0.0002,68198.0,68197.0,0.16888]
[1729364782018,0.0002,68198.0,68197.0,0.43450563]
[1729364783811,0.0002,68198.0,68197.0,0.066182]
[1729364784211,0.10943367,68198.0,68197.0,0.066182]
[1729364789010,0.0002,68198.0,68197.0,0.066182]
[1729364789318,0.10943036,68198.0,68197.0,0.066182]
[1729364789822,0.10943036,68198.0,68197.0,0.0928635]
[1729364790813,0.0002,68198.0,68197.0,0.31838438]
[1729364791407,0.0002,68198.0,68197.0,0.31837695]
[1729364796330,0.0002,68198.0,68197.0,0.3184817]
[1729364798719,0.10943192,68198.0,68197.0,0.21555189]
[1729364798925,0.10943192,68198.0,68197.0,0.0928635]
[1729364801039,0.10943231,68198.0,68197.0,0.0928635]
[1729364803427,0.10943231,68198.0,68197.0,0.31362723]
[1729364806039,0.065974,68205.0,68202.0,0.065977]
[1729364806242,0.065974,68205.0,68203.0,0.22489207]
[1729364806431,0.065974,68205.0,68204.0,0.22489207]
[1729364807342,0.065974,68205.0,68204.0,0.29086707]
[1729364811738,0.065974,68205.0,68204.0,0.16857354]
[1729364812139,0.065974,68205.0,68204.0,0.29087041]
[1729364813946,0.065974,68205.0,68204.0,0.065975]
[1729364815845,0.065974,68205.0,68204.0,0.10994008]
[1729364816053,0.065974,68205.0,68204.0,0.065975]
[1729364820539,0.065974,68205.0,68204.0,0.28547331]
[1729364821038,0.17519999,68205.0,68204.0,0.28547331]
[1729364822636,0.10922599,68205.0,68204.0,0.28547331]
[1729364823561,0.02856352,68205.0,68204.0,0.28547331]
[1729364823749,0.10946407,68205.0,68204.0,0.28547331]
[1729364825042,0.27083901,68205.0,68204.0,0.28547331]
[1729364825947,0.10946582,68205.0,68204.0,0.28547331]
[1729364826937,0.10946582,68205.0,68204.0,0.16809529]
[1729364828245,0.10922668,68205.0,68204.0,0.16809529]
[1729364829154,0.065973,68206.0,68205.0,0.065974]
[1729364829453,0.065973,68206.0,68205.0,0.38969402]
[1729364837355,0.065973,68206.0,68205.0,0.47762424]
[1729364838447,0.065973,68206.0,68205.0,0.38969402]
[1729364842558,0.065973,68206.0,68205.0,0.47762424]
[1729364842953,0.065973,68206.0,68205.0,0.38969402]
[1729364844058,0.17519943,68206.0,68205.0,0.28632198]
[1729364847361,0.17519937,68206.0,68205.0,0.28632198]
[1729364848761,0.17519888,68206.0,68205.0,0.28632198]
[1729364850957,0.065973,68206.0,68205.0,0.38892931]
[1729364853967,0.065973,68206.0,68205.0,0.47685953]
[1729364854170,0.065973,68206.0,68205.0,0.38892931]
[1729364854764,0.065973,68206.0,68205.0,0.47685953]
[1729364855161,0.065973,68206.0,68205.0,0.38892931]
[1729364856972,0.065973,68206.0,68205.0,0.47694597]
[1729364857375,0.065973,68206.0,68205.0,0.38892931]
[1729364858573,0.3608,68222.0,68205.0,0.77177112]
[1729364858771,0.3608,68222.0,68218.0,0.065961]
[1729364858772,0.426757,68222.0,68218.0,0.065961]
[1729364859070,0.11197337,68219.0,68218.0,0.065961]
[1729364859477,0.06697902,68219.0,68218.0,0.64655089]
[1729364859863,0.0310821,68219.0,68218.0,0.64655089]
[1729364861476,0.03136207,68219.0,68218.0,0.64655089]
[1729364861875,0.02916262,68219.0,68218.0,0.64655089]
[1729364866174,0.065954,68225.0,68222.0,0.065957]
[1729364867569,0.065954,68225.0,68223.0,0.065956]
[1729364868481,0.065954,68225.0,68218.0,0.361]
[1729364868671,0.065954,68225.0,68224.0,0.065955]
[1729364874087,0.09506728,68225.0,68218.0,0.30960903]
[1729364874289,0.16071341,68222.0,68218.0,0.30960903]
[1729364874489,0.10999719,68221.0,68220.0,0.065959]
[1729364874876,0.10999719,68221.0,68220.0,0.28579673]
[1729364875787,0.10919757,68221.0,68220.0,0.28579673]
[1729364880483,0.07375465,68221.0,68220.0,0.28579673]
[1729364880687,0.065954,68225.0,68223.0,0.065956]
[1729364880883,0.10963703,68224.0,68223.0,0.065956]
[1729364881187,0.065954,68225.0,68223.0,0.065956]
[1729364881390,0.065954,68225.0,68224.0,0.0002]
[1729364881887,0.065954,68225.0,68224.0,0.066155]
[1729364887387,0.065954,68225.0,68224.0,0.0002]
[1729364889080,0.17554619,68225.0,68224.0,4.752e-05]
[1729364893887,0.17554619,68225.0,68224.0,0.06600252]
[1729364895187,0.09465797,68225.0,68224.0,0.06600252]
[1729364895387,0.17558668,68225.0,68224.0,0.06600252]
[1729364896093,0.065954,68225.0,68224.0,0.16816412]
[1729364896293,0.065954,68225.0,68224.0,0.24144397]
[1729364897091,0.065954,68225.0,68224.0,0.16816412]
[1729364897289,0.101954,68225.0,68224.0,0.24144337]
[1729364897686,0.101954,68225.0,68224.0,0.16816412]
[1729364898091,0.462754,68225.0,68224.0,0.16816412]
[1729364898397,0.462754,68225.0,68224.0,0.16814558]
[1729364900396,0.101954,68225.0,68224.0,0.16814558]
[1729364900798,0.462754,68225.0,68224.0,0.16814558]
[1729364901499,0.101954,68225.0,68224.0,0.16814558]
[1729364901699,0.462754,68225.0,68224.0,0.16814558]
[1729364904098,0.462754,68225.0,68224.0,0.06600252]
[1729364904900,0.101954,68225.0,68224.0,0.06600252]
[1729364905088,0.462754,68225.0,68224.0,0.06600252]
[1729364905397,0.101954,68225.0,68224.0,0.06600252]
[1729364905595,0.462754,68225.0,68224.0,0.06600252]
[1729364907895,0.462754,68225.0,68224.0,0.10997202]
[1729364908093,0.462754,68225.0,68224.0,0.06600252]
[1729364910302,0.3968,68225.0,68224.0,0.06600252]
[1729364910798,0.3968,68225.0,68224.0,0.10997202]
[1729364911189,0.3968,68225.0,68218.0,0.361]
[1729364911190,0.5065549,68225.0,68218.0,0.361]
[1729364911400,0.16232571,68224.0,68218.0,0.361]
[1729364911601,0.1097549,68223.0,68219.0,0.21939105]
[1729364911803,0.1097549,68222.0,68219.0,0.21939105]
[1729364911992,0.10976574,68221.0,68219.0,0.21939105]
[1729364912299,0.10976574,68220.0,68219.0,0.28535105]
[1729364912496,0.02888201,68220.0,68219.0,0.28535105]
[1729364912895,0.19017137,68220.0,68219.0,0.28535105]
[1729364913396,0.10976574,68220.0,68219.0,0.28535105]
[1729364913609,0.19017266,68220.0,68219.0,0.28535105]
[1729364914299,0.10976574,68220.0,68219.0,0.28535105]
[1729364914499,0.02888201,68220.0,68219.0,0.28535105]
[1729364915295,0.10976574,68220.0,68219.0,0.28535105]
[1729364915496,0.02888201,68220.0,68219.0,0.28535105]
[1729364915992,0.19017502,68220.0,68219.0,0.28535105]
[1729364916606,0.10976574,68220.0,68219.0,0.28535105]
[1729364916799,0.07387217,68220.0,68219.0,0.28535105]
[1729364917008,0.02888201,68220.0,68219.0,0.28535105]
[1729364917396,0.02844851,68220.0,68219.0,0.28535105]
[1729364917602,0.10933363,68220.0,68219.0,0.28535105]
[1729364917997,0.23473455,68220.0,68219.0,0.28535105]
[1729364918198,0.27062884,68220.0,68219.0,0.28535105]
[1729364918396,0.27062786,68220.0,68219.0,0.28535105]
[1729364918705,0.10933363,68220.0,68219.0,0.28535105]
[1729364919205,0.065955,68224.0,68223.0,0.065956]
[1729364934136,0.13038353,68224.0,68223.0,0.04096115]
[1729364934338,0.17537377,68224.0,68223.0,0.04096115]
[1729364936636,0.17516212,68224.0,68223.0,0.04096115]
[1729364940733,0.065955,68224.0,68223.0,0.04096115]
[1729364940929,0.13016196,68224.0,68223.0,0.04096115]
[1729364941138,0.13925859,68224.0,68223.0,0.04096115]
[1729364941336,0.065955,68224.0,68223.0,0.04096115]
[1729364941836,0.036,68225.0,68224.0,0.065955]
[1729364942135,0.036,68225.0,68224.0,0.066155]
[1729364943637,0.101954,68225.0,68224.0,0.066155]
[1729364949246,0.21117077,68225.0,68224.0,0.066155]
[1729364949543,0.21117077,68225.0,68224.0,0.04119053]
[1729364949946,0.21117077,68225.0,68224.0,0.0002]
[1729364950440,0.21117077,68225.0,68224.0,0.066155]
[1729364954250,0.101954,68225.0,68224.0,0.066155]
[1729364954440,0.2111506,68225.0,68224.0,0.066155]
[1729364956237,0.101954,68225.0,68224.0,0.066155]
[1729364959242,0.101954,68225.0,68224.0,0.11014189]
[1729364960045,0.101954,68225.0,68224.0,0.066155]
[1729364960647,0.101954,68225.0,68224.0,0.11014169]
[1729364961943,0.101954,68225.0,68224.0,0.066155]
[1729364963249,0.21115138,68225.0,68224.0,0.04148619]
[1729364971245,0.14694439,68225.0,68224.0,0.04148619]
[1729364971451,0.101954,68225.0,68224.0,0.04148619]
[1729364974357,0.101954,68225.0,68224.0,0.08547179]
[1729364974863,0.101954,68225.0,68224.0,0.085472]
[1729364975761,0.101954,68225.0,68224.0,0.04148619]
[1729364978460,0.13026698,68225.0,68224.0,0.04148619]
[1729364978761,0.21115041,68225.0,68224.0,0.04148619]
[1729364982650,0.101954,68225.0,68224.0,0.04148619]
[1729364982861,0.37247442,68225.0,68224.0,0.04148619]
[1729364985458,0.21114895,68225.0,68224.0,0.04148619]
[1729364986264,0.21114895,68225.0,68222.0,0.0002]
[1729364986464,0.101954,68225.0,68224.0,0.065955]
[1729365001376,0.17525566,68225.0,68224.0,0.065955]
[1729365001577,0.21114846,68225.0,68224.0,0.065955]
[1729365003271,0.21114846,68225.0,68224.0,0.04155709]
[1729365005184,0.21114845,68225.0,68224.0,0.04155709]
[1729365008383,0.101954,68225.0,68224.0,0.26761376]
[1729365014881,0.101954,68225.0,68224.0,0.26763356]
[1729365016387,0.101954,68225.0,68224.0,0.04155709]
[1729365023696,0.21114845,68225.0,68224.0,0.04155709]
[1729365026099,0.16615927,68225.0,68224.0,0.04155709]
[1729365026388,0.21114779,68225.0,68224.0,0.04155709]
[1729365031594,0.101954,68225.0,68224.0,0.1446033]
[1729365034300,0.101954,68225.0,68224.0,0.14458467]
[1729365034692,0.101954,68225.0,68224.0,0.21788953]
[1729365035098,0.101954,68225.0,68224.0,0.14458467]
[1729365035300,0.101954,68225.0,68224.0,0.21788701]
[1729365035503,0.101954,68225.0,68224.0,0.17632992]
[1729365035699,0.636,68225.0,68222.0,0.07350234]
[1729365036001,0.065956,68223.0,68222.0,0.0002]
[1729365036203,0.154636,68223.0,68222.0,0.0002]
[1729365038595,0.26384027,68223.0,68222.0,0.0002]
[1729365038798,0.154636,68223.0,68222.0,0.0002]
[1729365038999,0.26384027,68223.0,68222.0,0.0002]
[1729365039401,0.19788427,68223.0,68219.0,0.06596]
[1729365039602,0.065958,68221.0,68219.0,0.06596]
[1729365039801,0.06421104,68220.0,68219.0,0.06596]
[1729365043612,0.06421075,68220.0,68215.0,0.3608]
[1729365043912,0.06421075,68219.0,68218.0,0.065961]
[1729365046718,0.065958,68221.0,68220.0,0.065959]
[1729365046918,0.065958,68221.0,68220.0,0.16921881]
[1729365047514,0.0928647,68221.0,68220.0,0.16921881]
[1729365053319,0.0928647,68221.0,68220.0,0.25713601]
[1729365053717,0.20206912,68221.0,68220.0,0.066159]
[1729365057818,0.15707583,68221.0,68220.0,0.066159]
[1729365058213,0.2020688,68221.0,68220.0,0.066159]
[1729365058412,0.15707583,68221.0,68220.0,0.066159]
[1729365061617,0.0928647,68221.0,68220.0,0.29232889]
[1729365065523,0.0269067,68221.0,68220.0,0.29232889]
[1729365065732,0.065958,68221.0,68220.0,0.29232889]
[1729365067032,0.065955,68224.0,68223.0,0.065955]
[1729365067328,0.065955,68224.0,68223.0,0.29232489]
[1729365068628,0.13016416,68224.0,68223.0,0.066155]
[1729365069130,0.17515601,68224.0,68223.0,0.066155]
[1729365070026,0.20201747,68224.0,68223.0,0.066155]
[1729365076846,0.20201747,68224.0,68223.0,0.24223853]
[1729365076847,0.09281646,68224.0,68223.0,0.24223853]
[1729365079751,0.09281646,68224.0,68223.0,0.16892342]
[1729365080338,0.09281646,68224.0,68223.0,0.24223333]
[1729365080639,0.09281646,68224.0,68223.0,0.16892342]
[1729365081039,0.09281646,68224.0,68223.0,0.24223259]
[1729365083051,0.09281646,68224.0,68223.0,0.13946417]
[1729365083245,0.09281646,68224.0,68223.0,0.066155]
[1729365091755,0.25459314,68224.0,68223.0,0.066155]
[1729365092152,0.2020195,68224.0,68223.0,0.066155]
[1729365093057,0.41591106,68224.0,68223.0,0.066155]
[1729365096158,0.41590901,68224.0,68223.0,0.066155]
[1729365097155,0.2020195,68224.0,68223.0,0.066155]
[1729365098950,0.09281646,68224.0,68223.0,0.16896667]
[1729365099757,0.09281646,68224.0,68223.0,0.16893006]
[1729365101961,0.09281646,68224.0,68223.0,0.25690819]
[1729365102862,0.09281646,68224.0,68223.0,0.16893006]
[1729365103047,0.09281646,68224.0,68223.0,0.25690819]
[1729365103358,0.09281646,68224.0,68223.0,0.25690874]
[1729365104256,0.09281646,68224.0,68223.0,0.16893006]
[1729365104760,0.09281646,68224.0,68223.0,0.16891319]
[1729365105563,0.09281646,68224.0,68223.0,0.2568942]
[1729365105860,0.09281646,68224.0,68223.0,0.16891319]
[1729365106454,0.09281646,68224.0,68223.0,0.25689213]
[1729365106764,0.45361646,68224.0,68223.0,0.25689213]
[1729365106961,0.45361646,68224.0,68223.0,0.24224204]
[1729365107853,0.0362,68225.0,68224.0,0.065955]
[1729365108056,0.0362,68225.0,68224.0,0.2013258]
[1729365108258,0.0362,68225.0,68224.0,0.42213649]
[1729365108768,0.0362,68225.0,68224.0,0.51011543]
[1729365109065,0.0362,68225.0,68224.0,0.42213649]
[1729365109266,0.0362,68225.0,68224.0,0.5100513]
[1729365110174,0.0362,68225.0,68224.0,0.42213649]
[1729365110664,0.0362,68225.0,68224.0,0.5100513]
[1729365110968,0.0362,68225.0,68224.0,0.42213649]
[1729365111265,0.0362,68225.0,68224.0,0.51000876]
[1729365112259,0.0362,68225.0,68224.0,0.42213649]
[1729365112459,0.0362,68225.0,68224.0,0.51000876]
[1729365112660,0.0362,68225.0,68224.0,0.42213649]
[1729365114069,0.14546212,68225.0,68224.0,0.31936569]
[1729365116269,0.14547018,68225.0,68224.0,0.31936569]
[1729365120675,0.14547014,68225.0,68224.0,1.35908569]
[1729365120970,0.0362,68225.0,68224.0,1.46083683]
[1729365121876,0.0362,68225.0,68224.0,1.5487091]
[1729365122072,0.0002,68229.0,68228.0,0.065952]
[1729365122272,0.0002,68229.0,68228.0,0.16790314]
[1729365126685,0.0002,68229.0,68228.0,0.16719374]
[1729365126979,0.0002,68229.0,68228.0,0.16719369]
[1729365127376,0.0002,68229.0,68228.0,0.38571248]
[1729365127577,0.0002,68229.0,68228.0,0.98571248]
[1729365127881,0.0002,68229.0,68228.0,0.38571248]
[1729365128865,0.0002,68229.0,68228.0,0.28466499]
[1729365129468,0.11089946,68229.0,68228.0,0.28466499]
[1729365135973,0.0002,68229.0,68228.0,0.38580061]
[1729365137279,0.0002,68229.0,68228.0,0.47360886]
[1729365141581,0.0002,68229.0,68228.0,0.47369166]
[1729365143287,0.0002,68229.0,68228.0,0.38588341]
[1729365143985,0.0002,68229.0,68228.0,0.28466499]
[1729365144483,0.11083323,68229.0,68228.0,0.28466499]
[1729365150978,0.0002,68229.0,68228.0,0.50679045]
[1729365155886,0.0002,68229.0,68228.0,0.5068111]
[1729365158991,0.0002,68229.0,68228.0,0.28466499]
[1729365159288,0.06588174,68229.0,68228.0,0.28466499]
[1729365159495,0.0002,68229.0,68228.0,0.28466499]
[1729365159890,0.11086585,68229.0,68228.0,0.28466499]
[1729365160195,0.11066585,68229.0,68228.0,0.28466499]
[1729365165700,0.11066673,68231.0,68228.0,0.21871299]
[1729365165888,0.11066673,68230.0,68228.0,0.21871299]
[1729365166093,0.065948,68232.0,68231.0,0.065949]
[1729365166294,0.065948,68232.0,68231.0,0.25550044]
[1729365166494,0.065948,68232.0,68231.0,0.47407464]
[1729365171000,0.065948,68232.0,68231.0,0.38607727]